Workbook

Sheet Produktionsanlæg
A1: Produktionsanlæg | B1: Enhed | C1: Standard-levetid | D1: Samlet mængde per 31/12-2014 | E1: Samlet mængde per 31/12-2015 | F1: Bemærk-ninger
A3: Boringer
A4: Boring (inkl. etablering, forerør, filter og prøvepumpning) | B4: dybdemeter | C4: 30 | D4: 1074 | E4: =1074+423 -> 1497 | F4: Polkatal
A5: Råvandsstationer
A6: Råvandsstation komplet montering og boringshus/tørbrønd | B6: stk. | C6: 30 | D6: 0 | E6: 5
A7: Instrumenter (flowmåler+tryk transducer+alarmer) | B7: stk. | C7: 10 | D7: 0 | E7: 0
A8: Pumpe inkl. stigrør og forerørsforsejlinger mv. - 1 | B8: m³/h | C8: 15 | D8: 38 | E8: 38.5
A9: Pumpe inkl. stigrør og forerørsforsejlinger mv. - 2 | B9: m³/h | C9: 15 | D9: 32 | E9: 39
A10: Pumpe inkl. stigrør og forerørsforsejlinger mv. - 3 | B10: m³/h | C10: 15 | D10: 23 | E10: 27
A11: Pumpe inkl. stigrør og forerørsforsejlinger mv. - 4 | B11: m³/h | C11: 15 | D11: 21 | E11: 21
A12: Pumpe inkl. stigrør og forerørsforsejlinger mv. - 5 | B12: m³/h | C12: 15 | D12: 48 | E12: 51
A13: Pumpe inkl. stigrør og forerørsforsejlinger mv. - 6 | B13: m³/h | C13: 15 | D13: 27 | E13: 30
A14: Pumpe inkl. stigrør og forerørsforsejlinger mv. - 7 | B14: m³/h | C14: 15 | D14: 32 | E14: 32
A15: Pumpe inkl. stigrør og forerørsforsejlinger mv. - 8 | B15: m³/h | C15: 15 | D15: 0 | E15: 0
A16: Pumpe inkl. stigrør og forerørsforsejlinger mv. - 9 | B16: m³/h | C16: 15 | D16: 38 | E16: 38
A17: Pumpe inkl. stigrør og forerørsforsejlinger mv. - 10 | B17: m³/h | C17: 15 | D17: 34 | E17: 34
A18: Pumpe inkl. stigrør og forerørsforsejlinger mv. - 11 | B18: m³/h | C18: 15 | D18: 36 | E18: 36
A19: Pumpe inkl. stigrør og forerørsforsejlinger mv. - 12 | B19: m³/h | C19: 15 | D19: 29 | E19: 29
A20: Pumpe inkl. stigrør og forerørsforsejlinger mv. - 13 | B20: m³/h | C20: 15 | D20: 30 | E20: 30
A21: Pumpe inkl. stigrør og forerørsforsejlinger mv. - 14 | B21: m³/h | C21: 15 | D21: 18 | E21: 18
A22: Pumpe inkl. stigrør og forerørsforsejlinger mv. - 15 | B22: m³/h | C22: 15 | D22: 0 | E22: 0
A23: Pumpe inkl. stigrør og forerørsforsejlinger mv. - 16 | B23: m³/h | C23: 15 | D23: 0 | E23: 0
A24: Pumpe inkl. stigrør og forerørsforsejlinger mv. - 17 | B24: m³/h | C24: 15 | D24: 21 | E24: 21
A25: Pumpe inkl. stigrør og forerørsforsejlinger mv. - 18 | B25: m³/h | C25: 15 | D25: 25 | E25: 25
A26: Pumpe inkl. stigrør og forerørsforsejlinger mv. - 19 | B26: m³/h | C26: 15 | D26: 0 | E26: 0
A27: Pumpe inkl. stigrør og forerørsforsejlinger mv. - 20 | B27: m³/h | C27: 15 | D27: 21 | E27: 21
A28: Pumpe inkl. stigrør og forerørsforsejlinger mv. - 21 | B28: m³/h | C28: 15 | D28: 46 | E28: 46
A29: Pumpe inkl. stigrør og forerørsforsejlinger mv. - 22 | B29: m³/h | C29: 15 | D29: 46 | E29: 46
A30: Pumpe inkl. stigrør og forerørsforsejlinger mv. - 23 | B30: m³/h | C30: 15 | D30: 32 | E30: 32
A31: Pumpe inkl. stigrør og forerørsforsejlinger mv. - 24 | B31: m³/h | C31: 15 | D31: 0 | E31: 0
A32: Pumpe inkl. stigrør og forerørsforsejlinger mv. - 25 | B32: m³/h | C32: 15 | D32: 0 | E32: 0
A33: Pumpe inkl. stigrør og forerørsforsejlinger mv. - 26 | B33: m³/h | C33: 15 | D33: 0 | E33: 0
A34: Pumpe inkl. stigrør og forerørsforsejlinger mv. - 27 | B34: m³/h | C34: 15 | D34: 0 | E34: 0
A35: Pumpe inkl. stigrør og forerørsforsejlinger mv. - 28 | B35: m³/h | C35: 15 | D35: 0 | E35: 0
A36: Pumpe inkl. stigrør og forerørsforsejlinger mv. - 29 | B36: m³/h | C36: 15 | D36: 0 | E36: 0
A37: Pumpe inkl. stigrør og forerørsforsejlinger mv. - 30 | B37: m³/h | C37: 15 | D37: 0 | E37: 0
A38: Erstatninger (OBS ingen øst-tillæg eller øvrige tillæg) | B38: stk. | C38: 30 | D38: 20 | E38: 20
A39: Hegn | B39: stk. | C39: 15 | D39: 0 | E39: 0
A40: Elanlæg | B40: boring | C40: 20 | D40: 19 | E40: =19+4 -> 23
A41: SRO anlæg | B41: boring | C41: 10 | D41: 19 | E41: 19
A42: Råvandsledninger - Land
A43: Ø 50mm < Ledningsnet ≤ Ø110 mm | B43: meter | C43: 75 | D43: 294.58 | E43: =5878+295 -> 6173
A44: Ø110 mm < Ledningsnet ≤ Ø 250 mm | B44: meter | C44: 75 | D44: 7994.18 | E44: 7994
A45: Ø 250 mm < Ledningsnet ≤ Ø 500mm | B45: meter | C45: 75 | D45: 3476.82 | E45: 3477
A46: Ledningsnet > Ø 500 mm | B46: meter | C46: 75 | D46: 0 | E46: 0
A47: Råvandsledninger - By
A48: Ø 50mm < Ledningsnet ≤ Ø110 mm | B48: meter | C48: 75 | D48: 0 | E48: 0
A49: Ø110 mm < Ledningsnet ≤ Ø 250 mm | B49: meter | C49: 75 | D49: 0 | E49: 0
A50: Ø 250 mm < Ledningsnet ≤ Ø 500mm | B50: meter | C50: 75 | D50: 0 | E50: 0
A51: Ledningsnet > Ø 500 mm | B51: meter | C51: 75 | D51: 0 | E51: 0
A52: Råvandsledninger - City
A53: Ø 50mm < Ledningsnet ≤ Ø110 mm | B53: meter | C53: 75 | D53: 0
A54: Ø110 mm < Ledningsnet ≤ Ø 250 mm | B54: meter | C54: 75 | D54: 0
A55: Ø 250 mm < Ledningsnet ≤ Ø 500mm | B55: meter | C55: 75 | D55: 0
A56: Ledningsnet > Ø 500 mm | B56: meter | C56: 75 | D56: 0
A57: Vandværk 1 | F57: Deigvad
A58: Beluftningsanlæg, iltningstrappe, Konstruktioner | B58: m³/h | C58: 50 | D58: 0 | E58: 0
A59: Beluftningsanlæg, iltningstrappe, Mek./EL | B59: m³/h | C59: 25 | D59: 0 | E59: 0
A60: Beluftningsanlæg, ika-beluftning, Konstruktioner | B60: m³/h | C60: 50 | D60: 0 | E60: 0
A61: Beluftningsanlæg, ika-beluftning, Mek./EL | B61: m³/h | C61: 25 | D61: 0 | E61: 0
A62: Beluftningsanlæg, bundbeluftbning, Konstruktioner | B62: m³/h | C62: 50 | D62: 320 | E62: 320
A63: Beluftningsanlæg, bundbeluftbning, Mek./EL | B63: m³/h | C63: 25 | D63: 320 | E63: 320
A64: Beluftningsanlæg, rislebakke, Konstruktioner | B64: m³/h | C64: 50 | D64: 0 | E64: 0
A65: Beluftningsanlæg, rislebakke, Mek./EL | B65: m³/h | C65: 25 | D65: 0 | E65: 0
A66: Beluftningsanlæg, kompressorbeluftning | B66: m³/h | C66: 25 | D66: 320 | E66: 320
A67: Beluftningsanlæg, ren ilt | B67: m³/h | C67: 25 | D67: 0 | E67: 0
A68: Behandlingsanlæg, kalk anlæg | B68: m³/h | C68: 25 | D68: 0 | E68: 0
A69: Behandlingsanlæg, luddosering | B69: m³/h | C69: 25 | D69: 0 | E69: 0
A70: Filteranlæg, åbne filtre, enkelt filtrering, Konstruktioner | B70: m³/h | C70: 50 | D70: 0 | E70: 0
A71: Filteranlæg, åbne filtre, enkelt filtrering, Mek./EL | B71: m³/h | C71: 25 | D71: 0 | E71: 0
A72: Filteranlæg, åbne filtre, dobbelt filtrering, Konstruktioner | B72: m³/h | C72: 50 | D72: 360 | E72: 360
A73: Filteranlæg, åbne filtre, dobbelt filtrering, Mek./EL | B73: m³/h | C73: 25 | D73: 360 | E73: 360
A74: Filteranlæg, trykfiltre, enkelt filtrering | B74: m³/h | C74: 25 | D74: 0 | E74: 0
A75: Filteranlæg, trykfiltre, dobbelt filtrering | B75: m³/h | C75: 25 | D75: 0 | E75: 0
A76: Rentvandsbeholder insitu støbt | B76: m³ | C76: 50 | D76: 2100 | E76: 2100
A77: Rentvandsbeholder element | B77: m³ | C77: 50 | D77: 0 | E77: 0
A78: Udpumpningsanlæg, rentvandspumper på vandværk | B78: m³/h | C78: 25 | D78: 820 | E78: 820
A79: Udpumpningsanlæg, frekvensomformer | B79: kW | C79: 25 | D79: 315 | E79: 315
A80: Udpumpningsanlæg, Hydrofor | B80: liter | C80: 25 | D80: 4000 | E80: 4000
A81: Skyllevand-/slamhåndteringsanlæg - lukkede betonbeholdere | B81: m³ | C81: 50 | D81: 0 | E81: 0
A82: Skyllevand-/slamhåndteringsanl. - åbne med faste sider/bund | B82: m³ | C82: 50 | D82: 400 | E82: 400
A83: Skyllevand-/slamhåndteringsanlæg - jordbassiner | B83: m³ | C83: 50 | D83: 0 | E83: 0
A84: Skyllevandsbehandling, inkl. UV-filter mv., Mek./EL | B84: m³/h. | C84: 25 | D84: 0 | E84: 0
A85: Skyllevandsbehandling, inkl. UV-filter mv., SRO | B85: m³/h. | C85: 10 | D85: 0 | E85: 0
A86: Nødstrømsanlæg på vandværk | B86: kW | C86: 25 | D86: 0 | E86: 0
A87: Elanlæg og SRO-anlæg - vandværk, Elanlæg | B87: m³/h. | C87: 25 | D87: 820 | E87: 820
A88: Elanlæg og SRO-anlæg - vandværk, SRO | B88: m³/h. | C88: 10 | D88: 820 | E88: 820
A89: Vandværk 2 | F89: Marke
A90: Beluftningsanlæg, iltningstrappe, Konstruktioner | B90: m³/h | C90: 50 | D90: 0 | E90: 0
A91: Beluftningsanlæg, iltningstrappe, Mek./EL | B91: m³/h | C91: 25 | D91: 0 | E91: 0
A92: Beluftningsanlæg, ika-beluftning, Konstruktioner | B92: m³/h | C92: 50 | D92: 0 | E92: 0
A93: Beluftningsanlæg, ika-beluftning, Mek./EL | B93: m³/h | C93: 25 | D93: 0 | E93: 0
A94: Beluftningsanlæg, bundbeluftbning, Konstruktioner | B94: m³/h | C94: 50 | D94: 0 | E94: 0
A95: Beluftningsanlæg, bundbeluftbning, Mek./EL | B95: m³/h | C95: 25 | D95: 0 | E95: 0
A96: Beluftningsanlæg, rislebakke, Konstruktioner | B96: m³/h | C96: 50 | D96: 0 | E96: 0
A97: Beluftningsanlæg, rislebakke, Mek./EL | B97: m³/h | C97: 25 | D97: 0 | E97: 0
A98: Beluftningsanlæg, kompressorbeluftning | B98: m³/h | C98: 25 | D98: 0 | E98: 0
A99: Beluftningsanlæg, ren ilt | B99: m³/h | C99: 25 | D99: 0 | E99: 0
A100: Behandlingsanlæg, kalk anlæg | B100: m³/h | C100: 25 | D100: 0 | E100: 0
A101: Behandlingsanlæg, luddosering | B101: m³/h | C101: 25 | D101: 0 | E101: 0
A102: Filteranlæg, åbne filtre, enkelt filtrering, Konstruktioner | B102: m³/h | C102: 50 | D102: 0 | E102: 0
A103: Filteranlæg, åbne filtre, enkelt filtrering, Mek./EL | B103: m³/h | C103: 25 | D103: 0 | E103: 0
A104: Filteranlæg, åbne filtre, dobbelt filtrering, Konstruktioner | B104: m³/h | C104: 50 | D104: 0 | E104: 0
A105: Filteranlæg, åbne filtre, dobbelt filtrering, Mek./EL | B105: m³/h | C105: 25 | D105: 0 | E105: 0
A106: Filteranlæg, trykfiltre, enkelt filtrering | B106: m³/h | C106: 25 | D106: 0 | E106: 0
A107: Filteranlæg, trykfiltre, dobbelt filtrering | B107: m³/h | C107: 25 | D107: 0 | E107: 0
A108: Rentvandsbeholder insitu støbt | B108: m³ | C108: 50 | D108: 400 | E108: 400
A109: Rentvandsbeholder element | B109: m³ | C109: 50 | D109: 0 | E109: 0
A110: Udpumpningsanlæg, rentvandspumper på vandværk | B110: m³/h | C110: 25 | D110: 360 | E110: 360
A111: Udpumpningsanlæg, frekvensomformer | B111: kW | C111: 25 | D111: 120 | E111: 120
A112: Udpumpningsanlæg, Hydrofor | B112: liter | C112: 25 | D112: 10000 | E112: 10000
A113: Skyllevand-/slamhåndteringsanlæg - lukkede betonbeholdere | B113: m³ | C113: 50 | D113: 0 | E113: 0
A114: Skyllevand-/slamhåndteringsanl. - åbne med faste sider/bund | B114: m³ | C114: 50 | D114: 0 | E114: 0
A115: Skyllevand-/slamhåndteringsanlæg - jordbassiner | B115: m³ | C115: 50 | D115: 0 | E115: 0
A116: Skyllevandsbehandling, inkl. UV-filter mv., Mek./EL | B116: m³/h. | C116: 25 | D116: 0 | E116: 0
A117: Skyllevandsbehandling, inkl. UV-filter mv., SRO | B117: m³/h. | C117: 10 | D117: 0 | E117: 0
A118: Nødstrømsanlæg på vandværk | B118: kW | C118: 25 | D118: 0 | E118: 0
A119: Elanlæg og SRO-anlæg - vandværk, Elanlæg | B119: m³/h. | C119: 25 | D119: 360 | E119: 360
A120: Elanlæg og SRO-anlæg - vandværk, SRO | B120: m³/h. | C120: 10 | D120: 360 | E120: 360
A121: Vandværk 3 | F121: Sejerø1
A122: Beluftningsanlæg, iltningstrappe, Konstruktioner | B122: m³/h | C122: 50 | D122: 0
A123: Beluftningsanlæg, iltningstrappe, Mek./EL | B123: m³/h | C123: 25 | D123: 0
A124: Beluftningsanlæg, ika-beluftning, Konstruktioner | B124: m³/h | C124: 50 | D124: 0
A125: Beluftningsanlæg, ika-beluftning, Mek./EL | B125: m³/h | C125: 25 | D125: 0
A126: Beluftningsanlæg, bundbeluftbning, Konstruktioner | B126: m³/h | C126: 50 | D126: 0
A127: Beluftningsanlæg, bundbeluftbning, Mek./EL | B127: m³/h | C127: 25 | D127: 0
A128: Beluftningsanlæg, rislebakke, Konstruktioner | B128: m³/h | C128: 50 | D128: 0 | E128: 10
A129: Beluftningsanlæg, rislebakke, Mek./EL | B129: m³/h | C129: 25 | D129: 0 | E129: 10
A130: Beluftningsanlæg, kompressorbeluftning | B130: m³/h | C130: 25 | D130: 0
A131: Beluftningsanlæg, ren ilt | B131: m³/h | C131: 25 | D131: 0
A132: Behandlingsanlæg, kalk anlæg | B132: m³/h | C132: 25 | D132: 0
A133: Behandlingsanlæg, luddosering | B133: m³/h | C133: 25 | D133: 0
A134: Filteranlæg, åbne filtre, enkelt filtrering, Konstruktioner | B134: m³/h | C134: 50 | D134: 0
A135: Filteranlæg, åbne filtre, enkelt filtrering, Mek./EL | B135: m³/h | C135: 25 | D135: 0
A136: Filteranlæg, åbne filtre, dobbelt filtrering, Konstruktioner | B136: m³/h | C136: 50 | D136: 0 | E136: 10
A137: Filteranlæg, åbne filtre, dobbelt filtrering, Mek./EL | B137: m³/h | C137: 25 | D137: 0 | E137: 10
A138: Filteranlæg, trykfiltre, enkelt filtrering | B138: m³/h | C138: 25 | D138: 0
A139: Filteranlæg, trykfiltre, dobbelt filtrering | B139: m³/h | C139: 25 | D139: 0
A140: Rentvandsbeholder insitu støbt | B140: m³ | C140: 50 | D140: 0 | E140: 35
A141: Rentvandsbeholder element | B141: m³ | C141: 50 | D141: 0 | E141: 150
A142: Udpumpningsanlæg, rentvandspumper på vandværk | B142: m³/h | C142: 25 | D142: 0 | E142: 20
A143: Udpumpningsanlæg, frekvensomformer | B143: kW | C143: 25 | D143: 0
A144: Udpumpningsanlæg, Hydrofor | B144: liter | C144: 25 | D144: 0 | E144: 400
A145: Skyllevand-/slamhåndteringsanlæg - lukkede betonbeholdere | B145: m³ | C145: 50 | D145: 0
A146: Skyllevand-/slamhåndteringsanl. - åbne med faste sider/bund | B146: m³ | C146: 50 | D146: 0
A147: Skyllevand-/slamhåndteringsanlæg - jordbassiner | B147: m³ | C147: 50 | D147: 0
A148: Skyllevandsbehandling, inkl. UV-filter mv., Mek./EL | B148: m³/h. | C148: 25 | D148: 0
A149: Skyllevandsbehandling, inkl. UV-filter mv., SRO | B149: m³/h. | C149: 10 | D149: 0
A150: Nødstrømsanlæg på vandværk | B150: kW | C150: 25 | D150: 0
A151: Elanlæg og SRO-anlæg - vandværk, Elanlæg | B151: m³/h. | C151: 25 | D151: 0 | E151: 20
A152: Elanlæg og SRO-anlæg - vandværk, SRO | B152: m³/h. | C152: 10 | D152: 0
A153: Vandværk 4 | F153: Sejerø2
A154: Beluftningsanlæg, iltningstrappe, Konstruktioner | B154: m³/h | C154: 50 | D154: 0
A155: Beluftningsanlæg, iltningstrappe, Mek./EL | B155: m³/h | C155: 25 | D155: 0
A156: Beluftningsanlæg, ika-beluftning, Konstruktioner | B156: m³/h | C156: 50 | D156: 0
A157: Beluftningsanlæg, ika-beluftning, Mek./EL | B157: m³/h | C157: 25 | D157: 0
A158: Beluftningsanlæg, bundbeluftbning, Konstruktioner | B158: m³/h | C158: 50 | D158: 0
A159: Beluftningsanlæg, bundbeluftbning, Mek./EL | B159: m³/h | C159: 25 | D159: 0
A160: Beluftningsanlæg, rislebakke, Konstruktioner | B160: m³/h | C160: 50 | D160: 0
A161: Beluftningsanlæg, rislebakke, Mek./EL | B161: m³/h | C161: 25 | D161: 0
A162: Beluftningsanlæg, kompressorbeluftning | B162: m³/h | C162: 25 | D162: 0 | E162: 3
A163: Beluftningsanlæg, ren ilt | B163: m³/h | C163: 25 | D163: 0
A164: Behandlingsanlæg, kalk anlæg | B164: m³/h | C164: 25 | D164: 0
A165: Behandlingsanlæg, luddosering | B165: m³/h | C165: 25 | D165: 0
A166: Filteranlæg, åbne filtre, enkelt filtrering, Konstruktioner | B166: m³/h | C166: 50 | D166: 0
A167: Filteranlæg, åbne filtre, enkelt filtrering, Mek./EL | B167: m³/h | C167: 25 | D167: 0
A168: Filteranlæg, åbne filtre, dobbelt filtrering, Konstruktioner | B168: m³/h | C168: 50 | D168: 0
A169: Filteranlæg, åbne filtre, dobbelt filtrering, Mek./EL | B169: m³/h | C169: 25 | D169: 0
A170: Filteranlæg, trykfiltre, enkelt filtrering | B170: m³/h | C170: 25 | D170: 0
A171: Filteranlæg, trykfiltre, dobbelt filtrering | B171: m³/h | C171: 25 | D171: 0 | E171: 3
A172: Rentvandsbeholder insitu støbt | B172: m³ | C172: 50 | D172: 0
A173: Rentvandsbeholder element | B173: m³ | C173: 50 | D173: 0 | E173: 8
A174: Udpumpningsanlæg, rentvandspumper på vandværk | B174: m³/h | C174: 25 | D174: 0 | E174: 5
A175: Udpumpningsanlæg, frekvensomformer | B175: kW | C175: 25 | D175: 0
A176: Udpumpningsanlæg, Hydrofor | B176: liter | C176: 25 | D176: 0 | E176: 400
A177: Skyllevand-/slamhåndteringsanlæg - lukkede betonbeholdere | B177: m³ | C177: 50 | D177: 0
A178: Skyllevand-/slamhåndteringsanl. - åbne med faste sider/bund | B178: m³ | C178: 50 | D178: 0
A179: Skyllevand-/slamhåndteringsanlæg - jordbassiner | B179: m³ | C179: 50 | D179: 0
A180: Skyllevandsbehandling, inkl. UV-filter mv., Mek./EL | B180: m³/h. | C180: 25 | D180: 0
A181: Skyllevandsbehandling, inkl. UV-filter mv., SRO | B181: m³/h. | C181: 10 | D181: 0
A182: Nødstrømsanlæg på vandværk | B182: kW | C182: 25 | D182: 0
A183: Elanlæg og SRO-anlæg - vandværk, Elanlæg | B183: m³/h. | C183: 25 | D183: 0 | E183: 5
A184: Elanlæg og SRO-anlæg - vandværk, SRO | B184: m³/h. | C184: 10 | D184: 0
A185: Vandværk 5 | F185: Sejerø3
A186: Beluftningsanlæg, iltningstrappe, Konstruktioner | B186: m³/h | C186: 50 | D186: 0
A187: Beluftningsanlæg, iltningstrappe, Mek./EL | B187: m³/h | C187: 25 | D187: 0
A188: Beluftningsanlæg, ika-beluftning, Konstruktioner | B188: m³/h | C188: 50 | D188: 0
A189: Beluftningsanlæg, ika-beluftning, Mek./EL | B189: m³/h | C189: 25 | D189: 0
A190: Beluftningsanlæg, bundbeluftbning, Konstruktioner | B190: m³/h | C190: 50 | D190: 0
A191: Beluftningsanlæg, bundbeluftbning, Mek./EL | B191: m³/h | C191: 25 | D191: 0
A192: Beluftningsanlæg, rislebakke, Konstruktioner | B192: m³/h | C192: 50 | D192: 0 | E192: 0.5
A193: Beluftningsanlæg, rislebakke, Mek./EL | B193: m³/h | C193: 25 | D193: 0
A194: Beluftningsanlæg, kompressorbeluftning | B194: m³/h | C194: 25 | D194: 0
A195: Beluftningsanlæg, ren ilt | B195: m³/h | C195: 25 | D195: 0
A196: Behandlingsanlæg, kalk anlæg | B196: m³/h | C196: 25 | D196: 0
A197: Behandlingsanlæg, luddosering | B197: m³/h | C197: 25 | D197: 0
A198: Filteranlæg, åbne filtre, enkelt filtrering, Konstruktioner | B198: m³/h | C198: 50 | D198: 0 | E198: 0.5
A199: Filteranlæg, åbne filtre, enkelt filtrering, Mek./EL | B199: m³/h | C199: 25 | D199: 0
A200: Filteranlæg, åbne filtre, dobbelt filtrering, Konstruktioner | B200: m³/h | C200: 50 | D200: 0
A201: Filteranlæg, åbne filtre, dobbelt filtrering, Mek./EL | B201: m³/h | C201: 25 | D201: 0
... 223 more rows

Sheet Distributionsanlæg
A1: Distributionsanlæg | B1: Enhed | C1: Standard-levetid | D1: Samlet mængde per 31/12-2014 | E1: Samlet mængde per 31/12-2015 | F1: Bemærk-ninger
A3: Ledningsnet - Land
A4: Ledningsnet ≤ Ø50 mm | B4: meter | C4: 75 | D4: 11125 | E4: =23572+11125 -> 34697
A5: Ø 50mm < Ledningsnet ≤ Ø110 mm | B5: meter | C5: 75 | D5: 30785.8 | E5: =4841+30785.8+12365 -> 47991.8
A6: Ø110 mm < Ledningsnet ≤ Ø 250 mm | B6: meter | C6: 75 | D6: 14735.14 | E6: 14735.14
A7: Ø 250 mm < Ledningsnet ≤ Ø 500mm | B7: meter | C7: 75 | D7: 20849 | E7: 20849
A8: Ledningsnet > Ø 500 mm | B8: meter | C8: 75 | D8: 4670.87 | E8: 4670.87
A9: Støbejernsledninger ≤ Ø50 mm | B9: meter | C9: 100 | D9: 0 | E9: =441+76+492 -> 1009
A10: Støbejernsledninger Ø 50mm < Ledningsnet ≤ Ø110 mm | B10: meter | C10: 100 | D10: 0 | E10: 2365
A11: Støbejernsledninger Ø110 mm < Ledningsnet ≤ Ø 250 mm | B11: meter | C11: 100 | D11: 0 | E11: 0
A12: Støbejernsledninger Ø 250 mm < Ledningsnet ≤ Ø 500mm | B12: meter | C12: 100 | D12: 0 | E12: 0
A13: Støbejernsledninger Ledningsnet > Ø 500 mm | B13: meter | C13: 100 | D13: 0 | E13: 0
A14: Eternitledninger ≤ Ø50 mm | B14: meter | C14: 75 | D14: 0 | E14: 0
A15: Eternitledninger Ø 50mm < Ledningsnet ≤ Ø110 mm | B15: meter | C15: 75 | D15: 0 | E15: 0
A16: Eternitledninger Ø110 mm < Ledningsnet ≤ Ø 250 mm | B16: meter | C16: 75 | D16: 0 | E16: 0
A17: Eternitledninger Ø 250 mm < Ledningsnet ≤ Ø 500mm | B17: meter | C17: 75 | D17: 207.03 | E17: 207.03
A18: Eternitledninger Ledningsnet > Ø 500 mm | B18: meter | C18: 75 | D18: 0 | E18: 0
A19: Skelbrønd, Konstruktioner | B19: stk. | C19: 50 | D19: 0 | E19: 0
A20: Skelbrønd, Mek./EL | B20: stk. | C20: 15 | D20: 0 | E20: 0
A21: Inspektionsbrønd, Konstruktioner | B21: stk. | C21: 50 | D21: 0 | E21: 0
A22: Inspektionsbrønd, Mek./EL | B22: stk. | C22: 15 | D22: 0 | E22: 0
A23: Stik på ledningsnet, Konstruktioner | B23: stk. | C23: 75 | D23: 461 | E23: =500+461 -> 961
A24: Stik på ledningsnet, Mek./EL | B24: stk. | C24: 75 | D24: 461 | E24: =500+461 -> 961
A25: Ledningsnet - By
A26: Ledningsnet ≤ Ø50 mm | B26: meter | C26: 75 | D26: 22352 | E26: =2785+22353 -> 25138
A27: Ø 50mm < Ledningsnet ≤ Ø110 mm | B27: meter | C27: 75 | D27: =46307-D32 -> 36066 | E27: =36066+762 -> 36828
A28: Ø110 mm < Ledningsnet ≤ Ø 250 mm | B28: meter | C28: 75 | D28: =47746-D33 -> 40657 | E28: =47746-E33 -> 40657
A29: Ø 250 mm < Ledningsnet ≤ Ø 500mm | B29: meter | C29: 75 | D29: =28927-D34 -> 28516 | E29: =28927-E34 -> 28516
A30: Ledningsnet > Ø 500 mm | B30: meter | C30: 75 | D30: 8723.25 | E30: 8723.25
A31: Støbejernsledninger ≤ Ø50 mm | B31: meter | C31: 100 | D31: 0 | E31: =1537+247 -> 1784
A32: Støbejernsledninger Ø 50mm < Ledningsnet ≤ Ø110 mm | B32: meter | C32: 100 | D32: 10241 | E32: =825+10241 -> 11066
A33: Støbejernsledninger Ø110 mm < Ledningsnet ≤ Ø 250 mm | B33: meter | C33: 100 | D33: 7089 | E33: 7089
A34: Støbejernsledninger Ø 250 mm < Ledningsnet ≤ Ø 500mm | B34: meter | C34: 100 | D34: 411 | E34: 411
A35: Støbejernsledninger Ledningsnet > Ø 500 mm | B35: meter | C35: 100 | D35: 0 | E35: 0
A36: Eternitledninger ≤ Ø50 mm | B36: meter | C36: 75 | D36: 0 | E36: 0
A37: Eternitledninger Ø 50mm < Ledningsnet ≤ Ø110 mm | B37: meter | C37: 75 | D37: 0 | E37: 0
A38: Eternitledninger Ø110 mm < Ledningsnet ≤ Ø 250 mm | B38: meter | C38: 75 | D38: 0 | E38: 0
A39: Eternitledninger Ø 250 mm < Ledningsnet ≤ Ø 500mm | B39: meter | C39: 75 | D39: 0 | E39: 0
A40: Eternitledninger Ledningsnet > Ø 500 mm | B40: meter | C40: 75 | D40: 0 | E40: 0
A41: Skelbrønd, Konstruktioner | B41: stk. | C41: 50 | D41: 0 | E41: 0
A42: Skelbrønd, Mek./EL | B42: stk. | C42: 15 | D42: 0 | E42: 0
A43: Inspektionsbrønd, Konstruktioner | B43: stk. | C43: 50 | D43: 0 | E43: 5
A44: Inspektionsbrønd, Mek./EL | B44: stk. | C44: 15 | D44: 0 | E44: 5
A45: Stik på ledningsnet, Konstruktioner | B45: stk. | C45: 75 | D45: 3417 | E45: =159+3417+54 -> 3630
A46: Stik på ledningsnet, Mek./EL | B46: stk. | C46: 75 | D46: =+D45 -> 3417 | E46: =+E45 -> 3630
A47: Ledningsnet - City
A48: Ledningsnet ≤ Ø50 mm | B48: meter | C48: 75 | D48: =52.46+7.82+43.59+1032.7+341 -> 1477.57 | E48: =52.46+7.82+43.59+1032.7+341 -> 1477.57
A49: Ø 50mm < Ledningsnet ≤ Ø110 mm | B49: meter | C49: 75 | D49: =307.71+313.62+1.36+200.57+168.4+1380.95+292.88 -> 2665.49 | E49: =307.71+313.62+1.36+200.57+168.4+1380.95+292.88 -> 2665.49
A50: Ø110 mm < Ledningsnet ≤ Ø 250 mm | B50: meter | C50: 75 | D50: =1323.18+372.32+432.4+13.87+507.8 -> 2649.57 | E50: =1323.18+372.32+432.4+13.87+507.8 -> 2649.57
A51: Ø 250 mm < Ledningsnet ≤ Ø 500mm | B51: meter | C51: 75 | D51: =20.87+477.91+545.2 -> 1043.98 | E51: =20.87+477.91+545.2 -> 1043.98
A52: Ledningsnet > Ø 500 mm | B52: meter | C52: 75 | D52: 0 | E52: 0
A53: Støbejernsledninger ≤ Ø50 mm | B53: meter | C53: 100 | D53: 0 | E53: 0
A54: Støbejernsledninger Ø 50mm < Ledningsnet ≤ Ø110 mm | B54: meter | C54: 100 | D54: 0 | E54: 0
A55: Støbejernsledninger Ø110 mm < Ledningsnet ≤ Ø 250 mm | B55: meter | C55: 100 | D55: 0 | E55: 0
A56: Støbejernsledninger Ø 250 mm < Ledningsnet ≤ Ø 500mm | B56: meter | C56: 100 | D56: 0 | E56: 0
A57: Støbejernsledninger Ledningsnet > Ø 500 mm | B57: meter | C57: 100 | D57: 0 | E57: 0
A58: Eternitledninger ≤ Ø50 mm | B58: meter | C58: 75 | D58: 0 | E58: 0
A59: Eternitledninger Ø 50mm < Ledningsnet ≤ Ø110 mm | B59: meter | C59: 75 | D59: 0 | E59: 0
A60: Eternitledninger Ø110 mm < Ledningsnet ≤ Ø 250 mm | B60: meter | C60: 75 | D60: 0 | E60: 0
A61: Eternitledninger Ø 250 mm < Ledningsnet ≤ Ø 500mm | B61: meter | C61: 75 | D61: 0 | E61: 0
A62: Eternitledninger Ledningsnet > Ø 500 mm | B62: meter | C62: 75 | D62: 0 | E62: 0
A63: Skelbrønd, Konstruktioner | B63: stk. | C63: 50 | D63: 0 | E63: 0
A64: Skelbrønd, Mek./EL | B64: stk. | C64: 15 | D64: 0 | E64: 0
A65: Inspektionsbrønd, Konstruktioner | B65: stk. | C65: 50 | D65: 0 | E65: 0
A66: Inspektionsbrønd, Mek./EL | B66: stk. | C66: 15 | D66: 0 | E66: 0
A67: Stik på ledningsnet, Konstruktioner | B67: stk. | C67: 75 | D67: 382 | E67: 382
A68: Stik på ledningsnet, Mek./EL | B68: stk. | C68: 75 | D68: 382 | E68: 382
A69: Ledningsnet - Indre city
A70: Ledningsnet ≤ Ø50 mm | B70: meter | C70: 75 | D70: 0
A71: Ø 50mm < Ledningsnet ≤ Ø110 mm | B71: meter | C71: 75 | D71: 0
A72: Ø110 mm < Ledningsnet ≤ Ø 250 mm | B72: meter | C72: 75 | D72: 0
A73: Ø 250 mm < Ledningsnet ≤ Ø 500mm | B73: meter | C73: 75 | D73: 0
A74: Ledningsnet > Ø 500 mm | B74: meter | C74: 75 | D74: 0
A75: Støbejernsledninger ≤ Ø50 mm | B75: meter | C75: 100 | D75: 0
A76: Støbejernsledninger Ø 50mm < Ledningsnet ≤ Ø110 mm | B76: meter | C76: 100 | D76: 0
A77: Støbejernsledninger Ø110 mm < Ledningsnet ≤ Ø 250 mm | B77: meter | C77: 100 | D77: 0
A78: Støbejernsledninger Ø 250 mm < Ledningsnet ≤ Ø 500mm | B78: meter | C78: 100 | D78: 0
A79: Støbejernsledninger Ledningsnet > Ø 500 mm | B79: meter | C79: 100 | D79: 0
A80: Eternitledninger ≤ Ø50 mm | B80: meter | C80: 75 | D80: 0
A81: Eternitledninger Ø 50mm < Ledningsnet ≤ Ø110 mm | B81: meter | C81: 75 | D81: 0
A82: Eternitledninger Ø110 mm < Ledningsnet ≤ Ø 250 mm | B82: meter | C82: 75 | D82: 0
A83: Eternitledninger Ø 250 mm < Ledningsnet ≤ Ø 500mm | B83: meter | C83: 75 | D83: 0
A84: Eternitledninger Ledningsnet > Ø 500 mm | B84: meter | C84: 75 | D84: 0
A85: Skelbrønd, Konstruktioner | B85: stk. | C85: 50 | D85: 0
A86: Skelbrønd, Mek./EL | B86: stk. | C86: 15 | D86: 0
A87: Inspektionsbrønd, Konstruktioner | B87: stk. | C87: 50 | D87: 0
A88: Inspektionsbrønd, Mek./EL | B88: stk. | C88: 15 | D88: 0
A89: Stik på ledningsnet, Konstruktioner | B89: stk. | C89: 75 | D89: 0
A90: Stik på ledningsnet, Mek./EL | B90: stk. | C90: 75 | D90: 0
A91: Ventiler
A92: Ventiler på ledningsnet ≤ Ø50 mm | B92: stk. | C92: 75 | D92: =3366+30 -> 3396 | E92: =3366+30 -> 3396
A93: Ventiler på Ø 50mm < Ledningsnet ≤ Ø110 mm | B93: stk. | C93: 75 | D93: =700+20 -> 720 | E93: =700+20 -> 720
A94: Ventiler på Ø110 mm < Ledningsnet ≤ Ø 250 mm | B94: stk. | C94: 75 | D94: =150+10 -> 160 | E94: 165
A95: Ventiler på Ø 250 mm < Ledningsnet ≤ Ø 500mm | B95: stk. | C95: 75 | D95: 54 | E95: 54
A96: Ventiler på ledningsnet > Ø 500 mm | B96: stk. | C96: 75 | D96: 6 | E96: 6
A97: Pumpestationer, bygværker og bassiner 1
A98: Pumpestation (inkl. evt. hydrofor)/trykforøger, Konstruktioner | B98: m³/h | C98: 50 | D98: 0 | E98: 0
A99: Pumpestation (inkl. evt. hydrofor)/trykforøger, Mek./EL | B99: m³/h | C99: 25 | D99: 0 | E99: 0
A100: Pumpestation (inkl. evt. hydrofor)/trykforøger, SRO | B100: m³/h | C100: 10 | D100: 0 | E100: 0
A101: Beholderanlæg - højdebeholder | B101: m³ | C101: 50 | D101: 4000 | E101: 4000 | F101: Polkatal
A102: Beholderanlæg - vandtårn | B102: m³ | C102: 50 | D102: 400 | E102: 400 | F102: Stadig vores
A103: Pumpestationer, bygværker og bassiner 2
A104: Pumpestation (inkl. evt. hydrofor)/trykforøger, Konstruktioner | B104: m³/h | C104: 50 | D104: 114 | E104: 114 | F104: trykforøger vandtårn
A105: Pumpestation (inkl. evt. hydrofor)/trykforøger, Mek./EL | B105: m³/h | C105: 25 | D105: 114 | E105: 114
A106: Pumpestation (inkl. evt. hydrofor)/trykforøger, SRO | B106: m³/h | C106: 10 | D106: 114 | E106: 114
A107: Beholderanlæg - højdebeholder | B107: m³ | C107: 50 | D107: 0 | E107: 0
A108: Beholderanlæg - vandtårn | B108: m³ | C108: 50 | D108: 0 | E108: 0
A109: Pumpestationer, bygværker og bassiner 3
A110: Pumpestation (inkl. evt. hydrofor)/trykforøger, Konstruktioner | B110: m³/h | C110: 50 | D110: 45 | E110: 45 | F110: Klosterparkvej
A111: Pumpestation (inkl. evt. hydrofor)/trykforøger, Mek./EL | B111: m³/h | C111: 25 | D111: 45 | E111: 45
A112: Pumpestation (inkl. evt. hydrofor)/trykforøger, SRO | B112: m³/h | C112: 10 | D112: 45 | E112: 45
A113: Beholderanlæg - højdebeholder | B113: m³ | C113: 50 | D113: 0 | E113: 0
A114: Beholderanlæg - vandtårn | B114: m³ | C114: 50 | D114: 0 | E114: 0
A115: Pumpestationer, bygværker og bassiner 4
A116: Pumpestation (inkl. evt. hydrofor)/trykforøger, Konstruktioner | B116: m³/h | C116: 50 | D116: 17 | E116: 17 | F116: Bjergsted
A117: Pumpestation (inkl. evt. hydrofor)/trykforøger, Mek./EL | B117: m³/h | C117: 25 | D117: 17 | E117: 17
A118: Pumpestation (inkl. evt. hydrofor)/trykforøger, SRO | B118: m³/h | C118: 10 | D118: 17 | E118: 17
A119: Beholderanlæg - højdebeholder | B119: m³ | C119: 50 | D119: 0 | E119: 0
A120: Beholderanlæg - vandtårn | B120: m³ | C120: 50 | D120: 0 | E120: 0
A121: Pumpestationer, bygværker og bassiner 5 | F121: Sejerø1
A122: Pumpestation (inkl. evt. hydrofor)/trykforøger, Konstruktioner | B122: m³/h | C122: 50 | D122: 0 | E122: 0
A123: Pumpestation (inkl. evt. hydrofor)/trykforøger, Mek./EL | B123: m³/h | C123: 25 | D123: 0 | E123: 15
A124: Pumpestation (inkl. evt. hydrofor)/trykforøger, SRO | B124: m³/h | C124: 10 | D124: 0 | E124: 15
A125: Beholderanlæg - højdebeholder | B125: m³ | C125: 50 | D125: 0 | E125: 50
A126: Beholderanlæg - vandtårn | B126: m³ | C126: 50 | D126: 0 | E126: 0
A127: Pumpestationer, bygværker og bassiner 6 | F127: Sejerø2
A128: Pumpestation (inkl. evt. hydrofor)/trykforøger, Konstruktioner | B128: m³/h | C128: 50 | D128: 0 | E128: 0
A129: Pumpestation (inkl. evt. hydrofor)/trykforøger, Mek./EL | B129: m³/h | C129: 25 | D129: 0 | E129: 15
A130: Pumpestation (inkl. evt. hydrofor)/trykforøger, SRO | B130: m³/h | C130: 10 | D130: 0 | E130: 15
A131: Beholderanlæg - højdebeholder | B131: m³ | C131: 50 | D131: 0 | E131: 50
A132: Beholderanlæg - vandtårn | B132: m³ | C132: 50 | D132: 0 | E132: 0
A133: Pumpestationer, bygværker og bassiner 7 | F133: Sejerø3
A134: Pumpestation (inkl. evt. hydrofor)/trykforøger, Konstruktioner | B134: m³/h | C134: 50 | D134: 0 | E134: 0
A135: Pumpestation (inkl. evt. hydrofor)/trykforøger, Mek./EL | B135: m³/h | C135: 25 | D135: 0 | E135: 20
A136: Pumpestation (inkl. evt. hydrofor)/trykforøger, SRO | B136: m³/h | C136: 10 | D136: 0 | E136: 20
A137: Beholderanlæg - højdebeholder | B137: m³ | C137: 50 | D137: 0 | E137: 50
A138: Beholderanlæg - vandtårn | B138: m³ | C138: 50 | D138: 0 | E138: 0
A139: Pumpestationer, bygværker og bassiner 8
A140: Pumpestation (inkl. evt. hydrofor)/trykforøger, Konstruktioner | B140: m³/h | C140: 50 | D140: 0
A141: Pumpestation (inkl. evt. hydrofor)/trykforøger, Mek./EL | B141: m³/h | C141: 25 | D141: 0
A142: Pumpestation (inkl. evt. hydrofor)/trykforøger, SRO | B142: m³/h | C142: 10 | D142: 0
A143: Beholderanlæg - højdebeholder | B143: m³ | C143: 50 | D143: 0
A144: Beholderanlæg - vandtårn | B144: m³ | C144: 50 | D144: 0
A145: Pumpestationer, bygværker og bassiner 9
A146: Pumpestation (inkl. evt. hydrofor)/trykforøger, Konstruktioner | B146: m³/h | C146: 50 | D146: 0
A147: Pumpestation (inkl. evt. hydrofor)/trykforøger, Mek./EL | B147: m³/h | C147: 25 | D147: 0
A148: Pumpestation (inkl. evt. hydrofor)/trykforøger, SRO | B148: m³/h | C148: 10 | D148: 0
A149: Beholderanlæg - højdebeholder | B149: m³ | C149: 50 | D149: 0
A150: Beholderanlæg - vandtårn | B150: m³ | C150: 50 | D150: 0
A151: Pumpestationer, bygværker og bassiner 10
A152: Pumpestation (inkl. evt. hydrofor)/trykforøger, Konstruktioner | B152: m³/h | C152: 50 | D152: 0
A153: Pumpestation (inkl. evt. hydrofor)/trykforøger, Mek./EL | B153: m³/h | C153: 25 | D153: 0
A154: Pumpestation (inkl. evt. hydrofor)/trykforøger, SRO | B154: m³/h | C154: 10 | D154: 0
A155: Beholderanlæg - højdebeholder | B155: m³ | C155: 50 | D155: 0
A156: Beholderanlæg - vandtårn | B156: m³ | C156: 50 | D156: 0
A157: Pumpestation (inkl. evt. hydrofor)/trykforøger, Konstruktioner | B157: m³/h | C157: 50 | D157: 0
A158: Pumpestation (inkl. evt. hydrofor)/trykforøger, Mek./EL | B158: m³/h | C158: 25 | D158: 0
A159: Pumpestation (inkl. evt. hydrofor)/trykforøger, SRO | B159: m³/h | C159: 10 | D159: 0
A160: Beholderanlæg - højdebeholder | B160: m³ | C160: 50 | D160: 0
A161: Beholderanlæg - vandtårn | B161: m³ | C161: 50 | D161: 0
A162: Andre
A163: Afregningsmålere, mekaniske, | B163: stk. | C163: 8 | D163: 4165 | E163: =500+35+124 -> 659 | F163: 2014 fejl
A164: Afregningsmålere, elektroniske ≤ Ø 110mm (Qn 10) | B164: stk. | C164: 10 | D164: 0 | E164: =54+4165-16 -> 4203
A165: Afregningsmålere, elektroniske > Ø110 mm | B165: stk. | C165: 10 | D165: 0 | E165: 16
A166: SRO-brønd/kvarterbrønd/sektionsbrønd, Konstruktioner | B166: stk. | C166: 50 | D166: 10 | E166: 15
A167: SRO-brønd/kvarterbrønd/sektionsbrønd, Mek./EL | B167: stk. | C167: 15 | D167: 10 | E167: 15
A168: SRO-brønd/kvarterbrønd/sektionsbrønd, SRO | B168: stk. | C168: 10 | D168: 10 | E168: 15
A182: FEJL

Sheet Fællesfunktionsanlæg
A1: Fællesfunktionsanlæg | B1: Enhed | C1: Standard-levetid | D1: Samlet mængde per 31/12-2014 | E1: Samlet mængde per 31/12-2015 | F1: Bemærk-ninger
A3: Andre
A4: Køretøjer, personbil | B4: stk. | C4: 5 | D4: 1 | E4: 2
A5: Køretøjer, små lastvogne (< 3.500 kg.) | B5: stk. | C5: 5 | D5: 4 | E5: 5
A6: Køretøjer, store lastvogne (> 3.500 kg.) | B6: stk. | C6: 5 | D6: 1 | E6: 1
A7: Køretøjer, entreprenørmaskiner | B7: stk. | C7: 5 | D7: 5 | E7: 6
A8: Øvrige
A9: Solcelleanlæg | B9: KWh | C9: 25 | D9: 0 | E9: 0
A10: EDB, tablets og navigationsudstyr | B10: stk. | C10: 5 | D10: =12*3+6 -> 42 | E10: =42+3+3 -> 48
A11: Elektroniske kort | B11: stk. | C11: 5 | D11: 6 | E11: 48

Sheet Drop downliste (hidden)
B2: datakvalitet | C2: Serviceselskab | D2: Overheads | E2: Infrastrukturomlægninger | F2: Infrastruktur per år | G2: år 1 | H2: år 2 | I2: år 3 | J2: år 4 | K2: år 5
G3: 2010 | H3: 2011 | I3: 2012 | J3: 2013 | K3: 2014
B4: 1 | C4: ja | D4: Full-cost | E4: ja | F4: 0.1
B5: 2 | C5: nej | D5: Direct-cost | E5: nej | F5: 0.2
B6: 3 | D6: Nøgletalsfordeling | F6: 0.3
D7: Activity based cost | F7: 0.4
D8: Andet | F8: 0.5
F9: 0.6
F10: 0.7
F11: 0.8
F12: 0.9
F13: 1
